fUSD/lending_fUSD_20250407
["ID","MTS","AMOUNT","RATE_DAILY","PERIOD"]
[357402606,1744045832372,-1000.0,0.00041301,30]
[357402607,1744045832381,-1077.04,0.00041425,2]
[357402608,1744045832390,-135.18270945,0.0004249,13]
[357402617,1744045838076,-291.94164525,0.00042489,31]
[357402618,1744045838086,-17.88149488,0.0004249,13]
[357402620,1744045840572,-137.80293899,0.0004249,13]
[357402621,1744045840597,-78226.31966687,0.0004249,13]
[357402623,1744045840870,-167662.40692896,0.0004249,13]
[357402624,1744045840881,-850.0,0.00042599,4]
[357402625,1744045840891,-300.0,0.000426,15]
[357402626,1744045840902,-4625.63977783,0.0004269,15]
[357402627,1744045840911,-1197.00730555,0.0004269,15]
[357402628,1744045840920,-186.2490324,0.0004269,8]
[357402629,1744045840930,-610.3522,0.00042693,10]
[357402630,1744045840940,-151.0,0.000427,14]
[357402631,1744045840954,-151.0,0.000427,14]
[357402632,1744045840966,-240.681549,0.000427,14]
[357402633,1744045840977,-151.0,0.000427,14]
[357402634,1744045840986,-700.0,0.000427,15]
[357402635,1744045840997,-586.59727228,0.00042736,58]
[357402636,1744045841007,-292.0,0.00042763,120]
[357402637,1744045841017,-338.0,0.00042773,10]
[357402638,1744045841027,-500.0,0.00042773,10]
[357402639,1744045841038,-263.152689,0.00042773,10]
[357402640,1744045841047,-500.0,0.00042773,10]
[357402641,1744045841058,-357.81390996,0.00042773,5]
[357402642,1744045841067,-506.00509804,0.00042773,10]
[357402643,1744045841078,-240.49672446,0.00042773,10]
[357402644,1744045841088,-500.0,0.00042773,2]
[357402645,1744045841097,-239.5104396,0.00042773,10]
[357402646,1744045841107,-500.0,0.00042773,2]
[357402647,1744045841117,-292.0,0.00042773,120]
[357402648,1744045841128,-306.50793992,0.0004278,7]
[357402649,1744045841138,-151.33,0.0004278,2]
[357402650,1744045841148,-151.33,0.0004278,2]
[357402651,1744045841159,-151.33,0.0004278,2]
[357402652,1744045841168,-151.33,0.0004278,2]
[357402653,1744045841179,-151.33,0.0004278,2]
[357402654,1744045841188,-151.33,0.0004278,2]
[357402655,1744045841202,-151.33,0.0004278,2]
[357402656,1744045841213,-151.33,0.0004278,2]
[357402657,1744045841223,-151.33,0.0004278,2]
[357402658,1744045841234,-292.0,0.00042783,120]
[357402659,1744045841244,-500.0,0.00042789,31]
[357402660,1744045841255,-500.0,0.00042789,31]
[357402661,1744045841266,-500.0,0.00042789,31]
[357402662,1744045841277,-502.74056902,0.00042789,31]
[357402663,1744045841288,-500.0,0.00042789,31]
[357402664,1744045841299,-191.77079308,0.00042789,31]
[357402665,1744045841309,-300.0,0.00042789,30]
[357402666,1744045841320,-1000.0,0.00042789,2]
[357402667,1744045841330,-447676.78073108,0.0004279,30]
[357402668,1744045841343,-444.34033509,0.0004279,30]
[357402684,1744045844711,-86575.13240848,0.00038232,2]
[357402685,1744045844724,-9901.40256324,0.00038232,2]
[357402703,1744045846377,-186.92853607,0.00038232,2]
[357402704,1744045846389,-731.9403007,0.00038232,2]
[357402709,1744045846534,-36.44822785,0.00038232,2]
[357402761,1744046094222,2299.999999,0.00042795,120]
[357402767,1744046750142,-250.0,0.00019,2]
[357402768,1744046750166,-467.43990846,0.0002,2]
[357402772,1744046802444,-1457.153555,0.0001985,2]
[357402773,1744046802466,-2048.42128244,0.0001995,2]
[357402774,1744046802490,-704025.42516256,0.0002,2]
[357402775,1744046827784,151.0,0.00042793,30]
[357402776,1744046831179,-300.0,0.00019999,2]
[357402777,1744046831203,-166.11991172,0.00019999,2]
[357402778,1744046834109,-683.88008828,0.00019999,2]
[357402779,1744046834132,-907.37040522,0.0002,2]
[357402780,1744046837964,200.0,0.00042793,30]
[357402781,1744046838305,200.0,0.00042793,30]
[357402782,1744046842085,-1768.17505633,0.0002,2]
[357402783,1744046844109,-168.64624044,0.0002,2]
[357402791,1744046945400,-300.0,0.00019999,2]
[357402792,1744046945424,-43934.181137,0.0002,2]
[357402793,1744046953134,-17198.14736577,0.0002,2]
[357402794,1744046953156,-4625.63977783,0.000207,2]
[357402795,1744046953355,-3109.25623459,0.000208,2]
[357402796,1744046953408,-173.23486261,0.000209,2]
[357402797,1744046953431,-479.0,0.00020999,2]
[357402798,1744046953454,-300.0,0.00021,2]
[357402799,1744046953477,-420.0,0.00021777,2]
[357402800,1744046953498,-350.0,0.00023,2]
[357402801,1744046953520,-1397.58775925,0.000232,2]
[357402802,1744046953542,-4625.63977782,0.00023503,2]
[357402803,1744046953567,-3109.25623452,0.00023606,2]
[357402804,1744046953588,-587.0,0.00023712,2]
[357402805,1744046953609,-4063.16531983,0.00024,5]
[357402806,1744046957123,-936.83468017,0.00024,5]
[357402807,1744046957144,-7129.89919783,0.00024174,2]
[357402808,1744046960076,-1226.50732777,0.00024174,2]
[357402809,1744046960111,-1471.7034744,0.00024174,2]
[357402810,1744046960132,-150.99,0.00024174,2]
[357402811,1744046960155,-400.0,0.00025,2]
[357402812,1744046960174,-225.42516596,0.00025,2]
[357402813,1744046960195,-200.0,0.00025,2]
[357402814,1744046960216,-1522.88741964,0.00025,2]
[357402815,1744046962096,-620.38727315,0.00025,2]
[357402816,1744046962118,-1058.65530686,0.00025,2]
[357402817,1744046967103,-698.41134378,0.00025,2]
[357402818,1744046967124,-336.22681807,0.00025,7]
[357402833,1744047032209,-706.19243033,0.00025,7]
[357402834,1744047032219,-861.12756967,0.00025,2]
[357402835,1744047032391,-163.59837342,0.00025,2]
[357402836,1744047032401,-1195.49510352,0.00025,2]
[357402837,1744047032413,-2054.4837899,0.00025,2]
[357402838,1744047032437,-24909.60432382,0.00025,2]
[357402839,1744047032447,-4625.63977782,0.00026306,2]
[357402840,1744047032457,-3109.25623452,0.00026412,2]
[357402841,1744047032467,-156.34,0.00026849,2]
[357402842,1744047032478,-450.0,0.00027,2]
[357402843,1744047032487,-150.0,0.00027397,2]
[357402845,1744047032498,-1195.03894646,0.00028617,2]
[357402882,1744047038318,-19628.4285,0.00028617,2]
[357402883,1744047038358,-335.40456179,0.00028617,2]
[357402884,1744047038420,-511.00409252,0.00028617,2]
[357402885,1744047038480,-1696.50767375,0.00028617,2]
[357402886,1744047038539,-533.61622548,0.00028617,2]
[357402887,1744047038549,-200.0,0.00028617,7]
[357402888,1744047038558,-500.0,0.00029,2]
[357402889,1744047038568,-4625.63977782,0.00029109,2]
[357402890,1744047038578,-3109.25623452,0.00029219,2]
[357402891,1744047038588,-173.23486261,0.00029882,2]
[357402892,1744047038598,-235.98934091,0.0003,2]
[357402893,1744047038608,-194.2,0.0003,2]
[357402894,1744047038618,-263.152689,0.000305,5]
[357402895,1744047038628,-500.0,0.000305,5]
[357402896,1744047038643,-506.00509804,0.000305,5]
[357402897,1744047038652,-500.0,0.000305,5]
[357402898,1744047038662,-240.49672446,0.000305,5]
[357402899,1744047038672,-239.5104396,0.000305,5]
[357402900,1744047038681,-5049.26003139,0.00031,2]
[357402901,1744047038690,-4625.63977782,0.00031912,2]
[357402902,1744047038700,-3109.25623452,0.00032025,2]
[357402903,1744047038709,-4625.63977782,0.00034715,2]
[357402904,1744047038720,-3109.25623452,0.00034831,2]
[357402905,1744047038730,-9041.59555547,0.0003593,7]
[357402906,1744047038739,-902.35961496,0.00035979,5]
[357402907,1744047038749,-12243.55722237,0.00036,2]
[357402929,1744047040304,-1043.87316363,0.00036,2]
[357402930,1744047040316,-1560.84649311,0.00036,2]
[357402932,1744047041025,-302.2027,0.00036,2]
[357402933,1744047041036,-281.58509351,0.00036,2]
[357402934,1744047041165,-500.0,0.00036,2]
[357402935,1744047041177,-548.89106457,0.00036,2]
[357402936,1744047041188,-1971.68527044,0.00036,2]
[357402937,1744047041200,-310.12,0.00036,2]
[357402938,1744047041228,-53938.8240138,0.00036,2]
[357402939,1744047041238,-614.0,0.00036188,2]
[357402940,1744047041247,-373.64291685,0.000372,103]
[357402941,1744047041256,-373.64291684,0.000372,103]
[357402942,1744047041266,-373.64291684,0.000372,103]
[357402943,1744047041275,-200.0,0.00037293,2]
[357402944,1744047041285,-586.59727228,0.00037323,42]
[357402945,1744047041294,-4625.63977782,0.00037518,2]
[357402946,1744047041303,-3109.25623452,0.00037637,2]
[357402947,1744047041313,-173.23486261,0.00038863,2]
[357402948,1744047041323,-156.34,0.00039087,2]
[357402949,1744047041336,-2906.0,0.00039562,120]
[357402950,1744047041346,-1125.64,0.00039691,2]
[357402951,1744047041356,-20022.8604853,0.0004,10]
[357402952,1744047041366,-4625.63977782,0.00040321,15]
[357402953,1744047041377,-3109.25623452,0.00040444,15]
[357402954,1744047041387,-464.763648,0.0004083,2]
[357402955,1744047041396,-165.0,0.00041,14]
[357402956,1744047041408,-1000.0,0.00041028,2]
[357402957,1744047041417,-151.8,0.00041096,2]
[357402958,1744047041427,-172.68,0.00041193,2]
[357402959,1744047041436,-250.0,0.00041383,2]
[357402960,1744047041446,-333.48,0.00041446,2]
[357402961,1744047041455,-373.64291684,0.00041483,120]
[357402962,1744047041465,-3127.07,0.00041489,2]
[357402963,1744047041475,-749.79,0.00041504,2]
[357402964,1744047041484,-1921.64,0.0004167,2]
[357402965,1744047041494,-240.26,0.00041673,120]
[357402966,1744047041503,-777.16,0.00041697,2]
[357402967,1744047041513,-461.2,0.00041729,2]
[357402968,1744047041523,-663.55,0.00041747,2]
[357402969,1744047041532,-1090.91,0.00041754,2]
[357402970,1744047041542,-1324.73,0.00041755,2]
[357402971,1744047041551,-150.0,0.0004176,2]
[357402972,1744047041561,-183.89,0.00041774,2]
[357402973,1744047041570,-150.0,0.00041796,2]
[357402974,1744047041580,-331.7,0.00041796,2]
[357402975,1744047041590,-2000.0,0.00041887,2]
[357402976,1744047041599,-2000.0,0.00041888,120]
[357402977,1744047041608,-1125.64,0.00041955,2]
[357402978,1744047041618,-2685.59268697,0.00042,6]
[357402979,1744047041628,-250.0,0.00042055,2]
[357402980,1744047041637,-1000.0,0.0004207,120]
[357402981,1744047041647,-162.563,0.0004207,63]
[357402982,1744047041657,-4619.994,0.0004207,63]
[357402983,1744047041666,-722.56,0.00042083,2]
[357402984,1744047041675,-6012.77,0.00042093,2]
[357402985,1744047041684,-1500.0,0.00042099,120]
[357402986,1744047041694,-3975.07,0.00042116,2]
[357402987,1744047041704,-285.3,0.00042149,120]
[357402988,1744047041713,-1852.42,0.00042222,2]
[357402989,1744047041723,-332.09900149,0.00042323,2]
[357402990,1744047041732,-176.55065,0.0004236,71]
[357402991,1744047041741,-4999.99999,0.0004242,45]
[357402992,1744047041750,-1000.0,0.0004259,30]
[357402993,1744047041759,-160.17,0.00042644,2]
[357402994,1744047041769,-332.0990015,0.00042718,2]
[357402995,1744047041778,-160.74,0.00042792,15]
[357402996,1744047041787,-12276.30513391,0.00042793,2]
[357402997,1744047041798,-299.64174531,0.00042793,2]
[357402998,1744047041807,-4943.15498957,0.00042793,7]
[357402999,1744047041816,-5237.89372758,0.00042793,4]
[357403000,1744047041826,-5176.63315784,0.00042793,4]
[357403001,1744047041835,-2490.54511093,0.00042793,20]
[357403002,1744047041845,-305.66110645,0.00042793,14]
[357403003,1744047041854,-150.0,0.00042793,14]
[357403004,1744047041864,-2549.3752318,0.00042793,2]
[357403005,1744047041874,-5000.0,0.00042795,120]
[357403006,1744047041883,-8824.86472835,0.00042807,2]
[357403007,1744047041901,-4803.90482545,0.00042807,2]
[357403008,1744047041911,-63203.9030241,0.00042979,2]
[357403009,1744047041920,-273.83542937,0.00043009,2]
[357403010,1744047041929,-4625.63977782,0.00043124,15]
[357403011,1744047041939,-165.0,0.00043151,90]
[357403012,1744047041948,-3109.25623452,0.0004325,15]
[357403013,1744047041957,-333.48,0.00043519,2]
[357403014,1744047041967,-175.0,0.00043531,2]
[357403015,1744047041977,-700.0,0.000437,15]
[357403016,1744047041988,-408.16864762,0.00043735,18]
[357403017,1744047041997,-1267.4904788,0.00043735,16]
[357403018,1744047042007,-162.45603508,0.00043735,28]
[357403019,1744047042016,-1500.0,0.000438,15]
[357403020,1744047042026,-22142.4163972,0.00043825,3]
[357403021,1744047042036,-1694.41,0.0004383,120]
[357403022,1744047042046,-500.0,0.00043835,30]
[357403023,1744047042056,-500.0,0.00043835,30]
[357403024,1744047042066,-525.2,0.00043835,30]
[357403025,1744047042076,-1699.11,0.00043835,30]
[357403026,1744047042086,-904.37,0.00043835,30]
[357403027,1744047042096,-726.15,0.00043835,30]
[357403028,1744047042108,-628.77,0.00043835,30]
[357403029,1744047042118,-651.56,0.00043835,30]
[357403030,1744047042128,-1184.34,0.00043835,30]
[357403031,1744047042144,-1127.23,0.00043835,30]
[357403032,1744047042156,-1233.76,0.00043835,30]
[357403033,1744047042167,-500.0,0.00043835,30]
[357403034,1744047042178,-2599.08,0.00043835,30]
[357403035,1744047042189,-1153.27,0.00043835,30]
[357403036,1744047042199,-907.08,0.00043835,30]
[357403037,1744047042209,-1433.48,0.00043835,30]
[357403038,1744047042219,-500.0,0.00043835,30]
[357403039,1744047042230,-500.0,0.00043835,30]
[357403040,1744047042240,-1994.35,0.00043835,30]
[357403041,1744047042250,-746.92,0.00043835,30]
[357403042,1744047042260,-1083.82,0.00043835,30]
[357403043,1744047042269,-500.0,0.00043835,30]
[357403044,1744047042279,-500.0,0.00043835,30]
[357403045,1744047042288,-1672.83,0.00043835,30]
[357403046,1744047042298,-880.11,0.00043835,30]
[357403047,1744047042307,-500.0,0.00043835,30]
[357403048,1744047042316,-500.0,0.00043835,30]
[357403049,1744047042325,-500.0,0.00043835,30]
[357403050,1744047042336,-1179.19,0.00043835,30]
[357403051,1744047042349,-500.0,0.00043835,30]
[357403052,1744047042359,-1331.6,0.00043835,30]
[357403053,1744047042368,-500.0,0.00043835,30]
[357403054,1744047042379,-500.0,0.00043835,2]
[357403055,1744047042391,-500.0,0.00043835,30]
[357403056,1744047042401,-844.77,0.00043835,30]
[357403057,1744047042410,-500.0,0.00043835,30]
[357403058,1744047042423,-500.0,0.00043835,30]
[357403059,1744047042433,-1668.09,0.00043835,30]
[357403060,1744047042443,-501.31,0.00043835,30]
[357403061,1744047042453,-500.0,0.00043835,30]
[357403062,1744047042463,-506.90837864,0.00043835,30]
[357403063,1744047042473,-2008.16,0.00043835,30]
[357403064,1744047042482,-163.151828,0.00043835,30]
[357403065,1744047042492,-500.0,0.00043835,30]
[357403066,1744047042501,-1353.05,0.00043835,30]
[357403067,1744047042512,-1219.72,0.00043835,30]
[357403068,1744047042522,-158.644913,0.00043835,30]
[357403069,1744047042531,-8425.456637,0.00043835,30]
[357403070,1744047042541,-500.0,0.00043835,30]
[357403071,1744047042551,-500.0,0.00043835,30]
[357403072,1744047042560,-500.0,0.00043835,30]
[357403073,1744047042571,-2200.0,0.000439,16]
[357403074,1744047042581,-14067.42,0.000439,17]
[357403075,1744047042591,-172.29020519,0.00044009,14]
[357403076,1744047042601,-150.0,0.00044043,2]
[357403077,1744047042610,-500.0,0.00044073,10]
[357403078,1744047042620,-500.0,0.00044073,10]
[357403079,1744047042629,-153.04065958,0.00044073,10]
[357403080,1744047042643,-636.83711825,0.00044073,10]
[357403081,1744047042652,-722.56,0.00044077,2]
[357403082,1744047042661,-22142.4163972,0.00044087,3]
[357403083,1744047042671,-151.33,0.00044088,2]
[357403084,1744047042884,-1000.0,0.00044096,120]
[357403085,1744047042899,-687.307423,0.00044097,30]
[357403086,1744047042908,-1287.54,0.00044097,30]
[357403088,1744047042917,-167.546997,0.00044097,30]
[357403089,1744047042926,-504.17,0.00044097,30]
[357403091,1744047042936,-768.13,0.00044097,30]
[357403093,1744047042945,-568.96,0.00044097,30]
[357403095,1744047042955,-949.4,0.00044097,30]
[357403096,1744047042964,-976.24,0.00044097,30]
[357403097,1744047042973,-154.172594,0.00044097,30]
[357403098,1744047042982,-969.8,0.00044097,30]
[357403099,1744047042991,-1013.48,0.00044097,30]
[357403100,1744047043000,-533.96,0.00044097,2]
[357403101,1744047043009,-778.43,0.00044097,30]
[357403102,1744047043018,-2074.29,0.00044097,30]
[357403103,1744047043027,-500.0,0.00044097,30]
[357403105,1744047043037,-2967.34,0.00044097,30]
[357403106,1744047043046,-895.81,0.00044097,30]
[357403107,1744047043056,-893.23,0.00044097,30]
[357403108,1744047043066,-1107.27,0.00044097,30]
[357403110,1744047043075,-703.64,0.00044097,30]
[357403112,1744047043085,-937.86,0.00044097,30]
[357403116,1744047043094,-855.11,0.00044097,30]
[357403119,1744047043103,-921.51,0.00044097,30]
[357403123,1744047043112,-1222.14,0.00044097,30]
[357403125,1744047043122,-3749.17,0.00044097,30]
[357403127,1744047043131,-1776.22,0.00044097,30]
[357403128,1744047043143,-544.91,0.00044097,30]
[357403131,1744047043152,-1954.7,0.00044097,30]
[357403133,1744047043162,-2276.9,0.00044097,30]
[357403135,1744047043172,-55356.0409931,0.00044097,3]
[357403138,1744047043181,-151.33,0.00044097,2]
[357403141,1744047043191,-154996.914781,0.00044098,3]
[357403143,1744047043200,-116401.543573,0.00044098,3]
[357403144,1744047043210,-306.50793992,0.00044098,7]
[357403145,1744047043219,-33213.6245959,0.00044099,3]
[357403146,1744047043228,-31040.4116195,0.00044099,3]
[357403147,1744047043237,-150.0,0.00044101,2]
[357403148,1744047043246,-500.0,0.00044107,30]
[357403149,1744047043256,-502.99,0.00044107,30]
[357403150,1744047043264,-655.98,0.00044107,30]
[357403151,1744047043273,-500.0,0.00044107,30]
[357403152,1744047043282,-539.02408818,0.00044107,30]
[357403153,1744047043292,-1267.82,0.00044107,30]
[357403154,1744047043300,-500.0,0.00044107,30]
[357403155,1744047043310,-243.67006171,0.00044107,30]
[357403156,1744047043319,-500.0,0.00044107,30]
[357403157,1744047043331,-500.0,0.00044107,30]
[357403158,1744047043349,-500.0,0.00044107,30]
[357403159,1744047043358,-500.0,0.00044107,30]
[357403160,1744047043367,-500.0,0.00044107,30]
[357403161,1744047043376,-500.0,0.00044107,30]
[357403162,1744047043385,-500.0,0.00044107,30]
[357403163,1744047043396,-1193.76,0.00044107,30]
[357403164,1744047043405,-397.08188837,0.00044107,30]
[357403165,1744047043415,-500.0,0.00044107,30]
[357403166,1744047043424,-500.0,0.00044107,30]
[357403167,1744047043433,-500.0,0.00044107,30]
[357403168,1744047043441,-500.0,0.00044107,30]
[357403169,1744047043450,-502.95613348,0.00044107,30]
[357403170,1744047043459,-500.0,0.00044107,30]
[357403171,1744047043468,-726.02,0.00044107,30]
[357403172,1744047043477,-167.46710531,0.00044107,30]
[357403173,1744047043487,-531.8274778,0.00044107,30]
[357403174,1744047043495,-500.0,0.00044107,30]
[357403175,1744047043504,-500.0,0.00044107,30]
[357403176,1744047043514,-500.0,0.00044107,30]
[357403177,1744047043523,-500.0,0.00044107,30]
[357403178,1744047043532,-500.0,0.00044107,30]
[357403179,1744047043541,-500.0,0.00044107,30]
[357403180,1744047043550,-500.0,0.00044107,30]
[357403181,1744047043559,-500.0,0.00044107,30]
[357403182,1744047043568,-480.093682,0.00044107,30]
[357403183,1744047043580,-500.0,0.00044107,30]
[357403184,1744047043590,-500.0,0.00044107,30]
[357403185,1744047043599,-500.0,0.00044107,30]
[357403186,1744047043608,-499.99709452,0.00044107,30]
[357403187,1744047043617,-500.0,0.00044107,30]
[357403188,1744047043627,-504.51424776,0.00044107,30]
[357403189,1744047043636,-502.43040737,0.00044107,30]
[357403190,1744047043648,-500.0,0.00044107,30]
[357403192,1744047043658,-502.95972806,0.00044107,30]
[357403193,1744047043666,-401.93432032,0.00044107,30]
[357403194,1744047043676,-500.0,0.00044107,30]
[357403195,1744047043684,-500.0,0.00044107,30]
[357403196,1744047043694,-859.96,0.00044107,30]
[357403197,1744047043703,-500.0,0.00044107,30]
[357403198,1744047043712,-500.0,0.00044107,30]
[357403199,1744047043722,-502.38963506,0.00044107,30]
[357403201,1744047043731,-504.48610428,0.00044107,30]
[357403203,1744047043740,-500.0,0.00044107,30]
[357403204,1744047043749,-500.0,0.00044107,30]
[357403206,1744047043758,-842.1,0.00044107,30]
[357403207,1744047043768,-501.22804242,0.00044107,30]
[357403208,1744047043777,-500.0,0.00044107,30]
[357403209,1744047043787,-500.0,0.00044107,30]
[357403210,1744047043796,-500.0,0.00044107,30]
[357403211,1744047043805,-499.87660668,0.00044107,30]
[357403212,1744047043815,-644.82521262,0.00044107,30]
[357403213,1744047043824,-500.0,0.00044107,30]
[357403214,1744047043833,-500.0,0.00044107,30]
[357403215,1744047043843,-500.0,0.00044107,30]
[357403216,1744047043852,-500.0,0.00044107,30]
[357403217,1744047043861,-500.0,0.00044107,30]
[357403218,1744047043871,-500.0,0.00044107,30]
[357403219,1744047043880,-500.0,0.00044107,30]
[357403220,1744047043893,-500.0,0.00044107,30]
[357403221,1744047043903,-501.23403454,0.00044107,30]
[357403222,1744047043912,-500.0,0.00044107,30]
[357403223,1744047043921,-564.76,0.00044107,30]
[357403224,1744047043931,-500.0,0.00044107,30]
[357403225,1744047043940,-631.55840801,0.00044107,30]
[357403226,1744047043949,-500.0,0.00044107,30]
[357403227,1744047043958,-500.0,0.00044107,30]
[357403228,1744047043969,-500.0,0.00044107,30]
[357403229,1744047043978,-500.0,0.00044107,30]
[357403230,1744047043988,-500.0,0.00044107,30]
[357403231,1744047043997,-500.0,0.00044107,30]
[357403232,1744047044007,-500.0,0.00044107,30]
[357403233,1744047044016,-500.0,0.00044107,30]
[357403234,1744047044025,-500.0,0.00044107,30]
[357403235,1744047044035,-807.69,0.00044107,30]
[357403236,1744047044044,-502.88739648,0.00044107,30]
[357403237,1744047044053,-500.0,0.00044107,30]
[357403238,1744047044063,-500.0,0.00044107,30]
[357403239,1744047044072,-500.0,0.00044107,30]
[357403240,1744047044081,-500.0,0.00044107,30]
[357403241,1744047044091,-500.0,0.00044107,30]
[357403242,1744047044100,-217.02953859,0.00044107,30]
[357403243,1744047044110,-502.12257754,0.00044107,30]
[357403244,1744047044120,-500.0,0.00044107,30]
[357403245,1744047044129,-500.0,0.00044107,30]
[357403246,1744047044138,-609.67,0.00044107,30]
[357403247,1744047044149,-587.23,0.00044107,30]
[357403248,1744047044158,-500.0,0.00044107,30]
[357403249,1744047044168,-500.0,0.00044107,30]
[357403250,1744047044178,-629.1683263,0.00044107,30]
[357403251,1744047044187,-500.0,0.00044107,30]
[357403252,1744047044196,-687.66,0.00044107,30]
[357403253,1744047044206,-500.0,0.00044107,30]
[357403254,1744047044215,-500.0,0.00044107,30]
[357403255,1744047044224,-500.0,0.00044107,30]
[357403256,1744047044234,-554.64,0.00044107,30]
[357403257,1744047044243,-779.41,0.00044107,30]
[357403258,1744047044252,-500.0,0.00044107,30]
[357403259,1744047044262,-500.0,0.00044107,30]
[357403260,1744047044271,-500.0,0.00044107,30]
[357403261,1744047044280,-548.4,0.00044107,30]
[357403262,1744047044289,-690.01,0.00044107,30]
[357403263,1744047044299,-500.0,0.00044107,30]
[357403264,1744047044309,-500.0,0.00044107,30]
[357403265,1744047044318,-587.32,0.00044107,30]
[357403266,1744047044328,-1026.12,0.00044107,30]
[357403267,1744047044342,-500.0,0.00044107,30]
[357403268,1744047044351,-500.0,0.00044107,30]
[357403269,1744047044360,-500.0,0.00044107,30]
[357403270,1744047044371,-500.0,0.00044107,30]
[357403271,1744047044381,-500.0,0.00044107,30]
[357403272,1744047044392,-525.66659224,0.00044107,30]
[357403273,1744047044402,-715.46,0.00044107,30]
[357403274,1744047044413,-514.82550696,0.00044107,30]
[357403275,1744047044423,-500.0,0.00044107,30]
[357403276,1744047044433,-598.35,0.00044107,30]
[357403277,1744047044443,-588.97,0.00044107,30]
[357403278,1744047044453,-800.98,0.00044107,30]
[357403279,1744047044462,-643.1,0.00044107,30]
[357403280,1744047044472,-502.86138317,0.00044107,30]
[357403281,1744047044481,-501.98395627,0.00044107,30]
[357403282,1744047044491,-705.4,0.00044107,30]
[357403283,1744047044501,-500.0,0.00044107,30]
[357403284,1744047044511,-772.77,0.00044107,30]
[357403285,1744047044520,-611.31,0.00044107,30]
[357403286,1744047044530,-1011.43817714,0.00044107,30]
[357403287,1744047044539,-151.0,0.00044107,14]
[357403288,1744047044549,-529.36196989,0.00044107,30]
[357403289,1744047044559,-745.64,0.00044107,30]
[357403290,1744047044569,-556.31020591,0.00044107,30]
[357403291,1744047044579,-511.29315973,0.00044107,2]
[357403292,1744047044588,-940.83,0.00044107,30]
[357403293,1744047044598,-733.84,0.00044107,30]
[357403294,1744047044608,-506.29274565,0.00044107,30]
[357403295,1744047044618,-727.46,0.00044107,30]
[357403296,1744047044627,-510.35891011,0.00044107,30]
[357403297,1744047044636,-500.0,0.00044107,30]
[357403298,1744047044650,-2275.6,0.00044107,30]
[357403299,1744047044659,-961.96,0.00044107,30]
[357403300,1744047044668,-1172.05,0.00044107,30]
[357403301,1744047044677,-956.05,0.00044107,30]
[357403302,1744047044687,-611.85,0.00044107,30]
[357403303,1744047044697,-943.95,0.00044107,30]
[357403304,1744047044706,-500.0,0.00044107,30]
[357403305,1744047044716,-641.47,0.00044107,30]
[357403306,1744047044726,-500.0,0.00044107,30]
[357403307,1744047044736,-151.0,0.00044107,14]
[357403308,1744047044745,-500.0,0.00044107,30]
[357403309,1744047044755,-500.0,0.00044107,30]
[357403310,1744047044764,-151.0,0.00044107,14]
[357403311,1744047044774,-500.0,0.00044107,30]
[357403312,1744047044784,-561.86349537,0.00044107,30]
[357403313,1744047044794,-2140.6,0.00044107,30]
[357403314,1744047044803,-500.0,0.00044107,30]
[357403315,1744047044813,-500.0,0.00044107,30]
[357403316,1744047044822,-500.0,0.00044107,30]
[357403317,1744047044832,-931.73,0.00044107,30]
[357403318,1744047044843,-1679.73,0.00044107,30]
[357403319,1744047044853,-437.54707969,0.00044107,30]
[357403320,1744047044861,-686.11,0.00044107,30]